bitfinex/quotes_ETHUSD_20241013
["timestamp","ask_amount","ask_price","bid_price","bid_amount"]
[1728861455419,0.7686,2466.9,2466.8,0.07137085]
[1728861455631,0.7686,2466.9,2466.5,5.54685204]
[1728861455868,0.7686,2466.9,2466.8,0.07137085]
[1728861456079,0.7686,2466.9,2466.5,5.54685204]
[1728861456369,0.7686,2466.9,2466.8,0.07137085]
[1728861456572,0.7686,2466.9,2466.5,9.60110204]
[1728861456771,0.7686,2466.9,2466.8,0.07137085]
[1728861457069,0.7686,2466.9,2466.5,9.60110204]
[1728861457363,0.7686,2466.9,2466.8,0.07137085]
[1728861457873,0.7686,2466.9,2466.6,4.05413]
[1728861458124,0.7794,2467.1,2466.8,0.07137085]
[1728861458334,0.7794,2467.1,2466.7,4.05388]
[1728861458497,0.7794,2467.1,2466.9,0.07137085]
[1728861458821,0.7794,2467.1,2466.7,8.10777]
[1728861459015,0.7794,2467.1,2467.0,0.07137085]
[1728861459384,0.7794,2467.1,2466.7,8.10777]
[1728861459586,0.7794,2467.1,2467.0,0.07135638]
[1728861460100,0.7794,2467.1,2466.7,8.10777]
[1728861460433,0.7662,2467.4,2467.0,5.61732842]
[1728861460729,0.7662,2467.4,2467.1,0.96709884]
[1728861461078,0.7662,2467.4,2467.2,0.07135638]
[1728861462913,4.81913,2467.4,2467.2,0.07135638]
[1728861463715,4.81913,2467.4,2467.3,0.07123352]
[1728861464035,4.81913,2467.4,2467.0,1.56934204]
[1728861464239,4.81913,2467.4,2467.3,0.07123352]
[1728861464603,4.81913,2467.4,2467.0,5.62284204]
[1728861464802,4.81913,2467.4,2467.3,0.07123352]
[1728861465005,4.81913,2467.4,2467.0,5.62284204]
[1728861465706,4.81913,2467.4,2467.1,0.07123352]
[1728861467911,0.7662,2467.4,2467.1,0.07123352]
[1728861468149,0.7662,2467.4,2467.1,2.1412896]
[1728861470463,0.7662,2467.4,2467.1,0.07123352]
[1728861471259,4.81904,2467.4,2467.1,0.07123352]
[1728861472524,0.7662,2467.4,2467.1,0.07123352]
[1728861474628,4.05271,2467.5,2467.1,1.56377556]
[1728861475028,4.05271,2467.5,2467.2,1.49254204]
[1728861475325,4.05271,2467.5,2467.3,0.07098058]
[1728861475754,4.05271,2467.5,2467.1,5.54586204]
[1728861476066,4.05271,2467.5,2467.1,6.51347024]
[1728861476265,4.05271,2467.5,2467.2,0.12694931]
[1728861476435,7.82313,2467.6,2467.2,0.07098058]
[1728861477251,7.82313,2467.6,2467.2,1.56352262]
[1728861477444,3.7706,2467.6,2467.2,1.56352262]
[1728861477644,4.05269,2467.5,2467.2,0.07098058]
[1728861479979,8.10546,2467.5,2467.2,0.07098058]
[1728861481259,4.05288,2467.4,2467.2,0.07098058]
[1728861481649,4.05288,2467.4,2467.0,1.56934204]
[1728861481866,4.05288,2467.4,2467.1,0.12695083]
[1728861482063,4.05288,2467.4,2467.0,1.56934204]
[1728861482265,4.05288,2467.4,2467.1,0.12695161]
[1728861482456,4.05288,2467.4,2467.0,5.62282204]
[1728861482651,4.05288,2467.4,2467.2,0.07098058]
[1728861482857,4.05288,2467.4,2467.0,5.62282204]
[1728861483068,4.05288,2467.4,2467.3,0.07098058]
[1728861483284,4.05288,2467.4,2467.0,5.62282204]
[1728861483445,4.05288,2467.4,2467.1,0.12695101]
[1728861483643,4.05288,2467.4,2467.2,0.07095168]
[1728861484077,4.05288,2467.4,2467.3,0.07095168]
[1728861484388,4.05288,2467.4,2467.0,5.62282204]
[1728861484596,4.05288,2467.4,2467.3,0.07095168]
[1728861484799,4.05288,2467.4,2467.0,5.62282204]
[1728861485093,4.05288,2467.4,2467.1,0.12695336]
[1728861485265,4.05288,2467.4,2467.0,5.62282204]
[1728861485470,4.05288,2467.4,2467.1,0.12695371]
[1728861485665,4.05288,2467.4,2467.0,5.62282204]
[1728861485869,4.05288,2467.4,2467.1,0.12695374]
[1728861486083,4.05288,2467.4,2467.0,5.62282204]
[1728861486391,4.05288,2467.4,2467.1,0.12695374]
[1728861486591,4.05269,2467.5,2467.1,0.07095168]
[1728861486795,8.1055,2467.5,2467.1,0.07095168]
[1728861487967,4.05292,2467.4,2467.1,0.07095168]
[1728861489996,4.05269,2467.5,2467.2,1.49254204]
[1728861490201,4.05245,2467.7,2467.4,1.49254204]
[1728861490558,4.05254,2467.6,2467.5,0.07095168]
[1728861491086,4.05254,2467.6,2467.3,0.0768]
[1728861491291,4.05254,2467.6,2467.5,0.07095168]
[1728861491597,4.05237,2467.7,2467.5,0.07095168]
[1728861491802,4.05237,2467.7,2467.3,1.56934204]
[1728861491987,4.05237,2467.7,2467.6,0.07095168]
[1728861492187,4.05237,2467.7,2467.3,1.56934204]
[1728861492362,4.05237,2467.7,2467.6,0.07095168]
[1728861492568,4.05237,2467.7,2467.3,1.56934204]
[1728861492768,4.05237,2467.7,2467.6,0.06917403]
[1728861493075,4.05237,2467.7,2467.3,1.56934204]
[1728861493286,4.05237,2467.7,2467.6,0.06917403]
[1728861493501,4.05237,2467.7,2467.4,1.49254204]
[1728861494005,1.27211414,2468.1,2467.7,0.0768]
[1728861494300,4.05187,2468.0,2467.8,1.61947746]
[1728861494607,4.05187,2468.0,2467.8,1.56170885]
[1728861494768,8.10327,2468.2,2467.8,1.56170885]
[1728861495097,4.0516,2468.2,2467.8,1.56170885]
[1728861495284,4.05171,2468.1,2467.8,1.56170885]
[1728861495496,4.05171,2468.1,2467.8,0.06916681]
[1728861495818,4.05171,2468.1,2467.7,1.56934204]
[1728861495964,4.05171,2468.1,2467.9,0.06916681]
[1728861496163,4.05171,2468.1,2467.7,1.56934204]
[1728861496364,4.05171,2468.1,2468.0,0.06916681]
[1728861496700,4.05171,2468.1,2467.7,1.56934204]
[1728861496858,4.05171,2468.1,2468.0,0.06916681]
[1728861497058,4.05203,2467.9,2467.4,4.33261273]
[1728861497301,4.05203,2467.9,2467.5,0.12692351]
[1728861497514,4.05203,2467.9,2467.5,1.49254204]
[1728861497660,4.05203,2467.9,2467.5,5.54522204]
[1728861498016,4.05203,2467.9,2467.5,1.49254204]
[1728861498180,4.05203,2467.9,2467.6,0.06884924]
[1728861498382,4.81526,2468.0,2467.6,0.06884924]
[1728861498383,8.86726,2468.0,2467.6,0.06884924]
[1728861498578,4.05204,2467.9,2467.6,0.06884924]
[1728861500877,4.81526,2468.0,2467.6,0.06884924]
[1728861501297,8.86724,2468.0,2467.6,0.06884924]
[1728861501896,4.81526,2468.0,2467.6,0.06884924]
[1728861503482,4.05202,2467.9,2467.6,0.06884924]
[1728861503699,8.10419,2467.9,2467.6,0.06884924]
[1728861503883,4.05235,2467.7,2467.6,0.06884924]
[1728861504100,6.33149204,2467.7,2467.6,0.06884924]
[1728861504283,6.33149204,2467.7,2467.3,0.12694066]
[1728861504284,4.05262,2467.6,2467.3,0.12694066]
[1728861504471,4.05262,2467.6,2467.1,5.54577204]
[1728861504672,4.05262,2467.6,2467.4,0.06396113]
[1728861504872,5.1460312,2467.6,2467.1,4.05323]
[1728861505078,4.05262,2467.6,2467.2,0.1269457]
[1728861505312,4.05262,2467.6,2467.1,5.54577204]
[1728861505500,4.05262,2467.6,2467.3,0.06396113]
[1728861505703,4.05262,2467.6,2467.1,5.54577204]
[1728861505895,4.05262,2467.6,2467.2,0.12694623]
[1728861506212,4.05278,2467.5,2467.2,0.06396113]
[1728861506371,4.05269,2467.5,2467.2,0.06396113]
[1728861506575,4.05269,2467.5,2467.2,1.55650317]
[1728861507020,4.05269,2467.5,2467.2,0.06396113]
[1728861507188,0.8232,2467.4,2467.2,0.06396113]
[1728861508517,0.8232,2467.4,2467.2,1.55650317]
[1728861509189,0.8232,2467.4,2467.2,0.06396113]
[1728861509388,4.87606,2467.4,2467.2,0.06396113]
[1728861509714,4.05301,2467.3,2467.2,0.06396113]
[1728861509919,4.05301,2467.3,2467.0,1.56934204]
[1728861510101,4.05301,2467.3,2467.1,0.12695181]
[1728861510409,4.05301,2467.3,2467.1,0.06427108]
[1728861514190,4.87606,2467.4,2467.1,1.55681312]
[1728861514630,8.92904,2467.4,2467.1,1.55681312]
[1728861515017,4.87606,2467.4,2467.1,1.55681312]
[1728861519948,4.05286,2467.4,2467.2,1.56934204]
[1728861520151,4.05286,2467.4,2467.3,0.06463872]
[1728861520335,6.197508,2467.4,2467.3,0.06463872]
[1728861520540,5.38696,2467.4,2467.0,1.56934204]
[1728861520867,4.05301,2467.3,2467.1,0.19159551]
[1728861521038,4.05301,2467.3,2467.1,0.06463872]
[1728861521229,1.3341,2467.4,2467.1,0.06463872]
[1728861521230,5.38706,2467.4,2467.1,0.06463872]
[1728861523275,4.05317,2467.2,2467.1,0.06463872]
[1728861523577,4.60317,2467.2,2467.1,0.06463872]
[1728861523780,4.60317,2467.2,2466.8,1.25863679]
[1728861523934,4.05341,2467.1,2466.9,0.06476129]
[1728861524139,4.05341,2467.1,2466.8,1.25863976]
[1728861524486,4.05341,2467.1,2466.9,0.19172734]
[1728861524784,4.0535,2467.0,2466.9,0.06476129]
[1728861524941,4.919191,2467.0,2466.9,0.06476129]
[1728861525136,4.919191,2467.0,2466.9,0.19172933]
[1728861525348,4.919191,2467.0,2466.9,0.06476129]
[1728861525785,4.0537,2466.9,2466.7,0.12697669]
[1728861526022,4.6035,2467.0,2466.8,0.06280791]
[1728861526274,8.65716,2467.0,2466.8,0.06280791]
[1728861526481,8.6571,2467.0,2466.7,1.49254204]
[1728861526783,4.6035,2467.0,2466.7,1.49254204]
[1728861526947,4.6035,2467.0,2466.8,0.06280791]
[1728861527149,4.6035,2467.0,2466.7,1.49254204]
[1728861527469,4.6035,2467.0,2466.8,0.06280791]
[1728861527774,4.6035,2467.0,2466.7,1.49254204]
[1728861527976,4.6035,2467.0,2466.8,0.06280791]
[1728861528176,4.6035,2467.0,2466.6,1.49254204]
[1728861528342,4.6035,2467.0,2466.7,0.06280791]
[1728861528981,4.83744,2467.1,2466.7,1.55534995]
[1728861529142,4.05354,2467.0,2466.7,1.55534995]
[1728861529338,4.05354,2467.0,2466.7,0.06280791]
[1728861529557,4.05354,2467.0,2466.7,1.55534995]
[1728861531189,4.05354,2467.0,2466.7,0.06280791]
[1728861532480,4.05354,2467.0,2466.7,1.55534995]
[1728861533237,4.83744,2467.1,2466.7,1.55534995]
[1728861534954,4.05356,2467.0,2466.7,0.06280791]
[1728861535595,4.83744,2467.1,2466.7,0.06280791]
[1728861536294,4.83744,2467.1,2466.7,1.55534995]
[1728861537603,4.83744,2467.1,2466.7,0.06280791]
[1728861538120,4.05352,2467.0,2466.7,0.06280791]
[1728861539895,4.05352,2467.0,2466.5,5.62364204]
[1728861540112,4.05352,2467.0,2466.8,0.06291594]
[1728861540312,4.05352,2467.0,2466.5,6.71841931]
[1728861540614,4.05352,2467.0,2466.6,1.49254204]
[1728861540811,4.05352,2467.0,2466.6,5.60960798]
[1728861541012,4.83745,2467.1,2466.6,5.60960798]
[1728861541521,4.0536,2467.0,2466.6,1.55545798]
[1728861541719,4.83745,2467.1,2466.6,5.60960798]
[1728861542026,4.83745,2467.1,2466.7,1.49254204]
[1728861542318,4.83745,2467.1,2466.6,4.11700594]
[1728861542319,4.05319,2467.2,2466.9,1.49254204]
[1728861542623,4.05319,2467.2,2467.0,0.06291594]
[1728861543125,4.05319,2467.2,2466.8,5.62310204]
[1728861543286,4.05319,2467.2,2467.1,0.06291594]
[1728861543493,4.05319,2467.2,2466.9,1.49254204]
[1728861543688,4.60319,2467.2,2467.1,0.06291594]
[1728861543920,0.8209,2466.9,2466.5,1.61951294]
[1728861544225,0.8209,2466.9,2466.4,4.13117]
[1728861544226,4.87458,2466.9,2466.6,0.06291594]
[1728861544596,2.31344204,2466.9,2466.6,0.06291594]
[1728861544843,4.05432,2466.5,2466.1,3.45869684]
[1728861544994,0.8209,2466.4,2466.1,0.20316311]
[1728861545491,0.8209,2466.4,2465.9,0.0768]
[1728861545492,4.05482,2466.2,2465.9,0.0768]
[1728861545691,4.05479,2466.3,2465.8,1.69635459]
[1728861545905,4.05482,2466.2,2465.8,1.56934204]
[1728861546312,4.05479,2466.3,2465.8,0.0768]
[1728861546515,4.05528,2466.0,2465.6,0.0768]
[1728861546716,4.05528,2466.0,2465.6,0.20382125]
[1728861546982,4.05531,2465.9,2465.6,0.0768]
[1728861547216,8.11074,2465.9,2465.6,0.0768]
[1728861547428,4.60515,2466.0,2465.6,0.0768]
[1728861549117,0.55,2466.0,2465.6,1.56934204]
[1728861549283,4.6053,2466.0,2465.6,1.56934204]
[1728861550483,8.66059,2466.0,2465.6,1.56934204]
[1728861550795,4.60529,2466.0,2465.5,1.49254204]
[1728861550995,4.60529,2466.0,2465.6,1.49254204]
[1728861553642,4.60529,2466.0,2465.5,5.54849204]
[1728861553795,5.76633652,2466.0,2465.6,1.49254204]
[1728861554140,5.76633652,2466.0,2465.4,0.0768]
[1728861554141,4.05564,2465.7,2465.4,0.0768]
[1728861554324,4.85525,2465.8,2465.4,0.0768]
[1728861554523,4.05565,2465.7,2465.4,0.0768]
[1728861554899,8.91084,2465.8,2465.4,0.0768]
[1728861555104,10.0061782,2465.8,2465.4,1.56934204]
[1728861555330,5.9505882,2465.8,2465.4,1.56934204]
[1728861555534,10.0062082,2465.8,2465.4,1.56934204]
[1728861555744,5.9505882,2465.8,2465.4,1.56934204]
[1728861556295,5.9505882,2465.8,2465.5,1.49254204]
[1728861556296,4.85525,2465.8,2465.5,1.49254204]
[1728861556498,0.55,2466.0,2465.7,1.49254204]
[1728861556813,4.85162,2466.2,2465.9,1.49254204]
[1728861557244,4.85162,2466.2,2465.8,1.56934204]
[1728861558239,4.85162,2466.2,2465.9,0.05835999]
[1728861558536,4.60467,2466.3,2466.0,1.49254204]
[1728861558860,4.60467,2466.3,2465.9,1.49254204]
[1728861559006,4.60467,2466.3,2466.1,0.05835999]
[1728861559209,4.05482,2466.2,2466.1,0.05835999]
[1728861559411,4.60467,2466.3,2465.8,5.62478204]
[1728861559628,9.7534702,2466.3,2466.1,0.05835999]
[1728861559845,9.7534702,2466.3,2465.8,5.62478204]
[1728861560014,5.6987302,2466.3,2466.2,0.05835999]
[1728861560200,5.6987302,2466.3,2465.8,5.62478204]
[1728861560405,5.6987302,2466.3,2465.9,0.05835999]
[1728861560830,4.05491,2466.2,2465.9,0.05835999]
[1728861562550,4.82871,2466.1,2465.9,0.05835999]
[1728861562732,5.772072,2466.1,2465.9,0.05835999]
[1728861562897,5.772072,2466.1,2465.7,1.49254204]
[1728861563100,4.05491,2466.2,2466.0,0.05835999]
[1728861563314,4.05491,2466.2,2465.8,1.49254204]
[1728861563515,4.60491,2466.2,2466.1,0.05835999]
[1728861563720,4.05491,2466.2,2465.8,1.49254204]
[1728861564259,8.10988,2466.2,2465.9,0.05835999]
[1728861564551,8.10988,2466.2,2465.9,1.55090203]
[1728861564552,4.05491,2466.2,2465.9,1.55090203]
[1728861564906,4.05491,2466.2,2465.9,0.05835999]
[1728861565945,4.05465,2466.3,2466.0,1.56934204]
[1728861566101,4.05465,2466.3,2466.0,0.0768]
[1728861566538,4.05465,2466.3,2466.1,0.05835999]
[1728861569503,4.05482,2466.2,2466.1,0.05835999]
[1728861569948,4.88342,2466.2,2466.1,0.05835999]
[1728861570246,5.371762,2466.2,2465.7,1.56934204]
[1728861570446,4.88342,2466.2,2466.1,0.05806439]
[1728861570635,4.88342,2466.2,2465.7,1.56934204]
[1728861570951,4.05515,2466.0,2465.7,1.56934204]
[1728861571312,4.05515,2466.0,2465.8,0.05806439]
[1728861571611,4.05515,2466.0,2465.7,1.56934204]
[1728861571812,4.05515,2466.0,2465.8,0.05806439]
[1728861572037,4.05515,2466.0,2465.7,1.56934204]
[1728861572352,4.05515,2466.0,2465.9,0.05806439]
[1728861572811,4.05515,2466.0,2465.7,1.56934204]
[1728861573012,4.05515,2466.0,2465.8,0.05806439]
[1728861573209,4.05515,2466.0,2465.7,1.56934204]
[1728861573451,4.05515,2466.0,2465.8,0.05806439]
[1728861574048,4.05515,2466.0,2465.9,0.05806439]
[1728861574415,4.05515,2466.0,2465.7,1.56934204]
[1728861574614,4.055,2466.1,2465.9,0.05806439]
[1728861574919,4.055,2466.1,2465.8,1.49254204]
[1728861575118,4.055,2466.1,2466.0,0.05806439]
[1728861575319,4.055,2466.1,2465.8,1.49254204]
[1728861575513,4.055,2466.1,2466.0,0.05806439]
[1728861576038,4.055,2466.1,2465.7,1.56934204]
[1728861576247,4.055,2466.1,2466.0,0.05806439]
[1728861576454,4.055,2466.1,2465.8,1.49254204]
[1728861576651,4.055,2466.1,2466.0,0.05806439]
[1728861576860,4.055,2466.1,2465.8,1.49254204]
[1728861577021,4.055,2466.1,2466.0,0.05806439]
[1728861577217,4.05467,2466.3,2465.9,1.49254204]
[1728861577542,4.05443,2466.5,2466.2,1.49254204]
[1728861577754,4.05472,2466.3,2466.0,1.56934204]
[1728861578129,4.05472,2466.3,2466.1,1.49254204]
[1728861578336,4.05472,2466.3,2466.0,1.56934204]
[1728861581524,4.05465,2466.4,2466.0,1.56934204]
[1728861581731,4.05444,2466.5,2466.1,1.49254204]
[1728861582535,8.10892,2466.5,2466.1,1.49254204]
[1728861582857,4.05452,2466.4,2466.1,1.49254204]
[1728861583165,8.10885,2466.5,2466.2,1.49254204]
[1728861583524,4.05452,2466.4,2466.1,1.49254204]
[1728861584761,4.05452,2466.4,2466.2,1.49254204]
[1728861585141,4.05452,2466.4,2466.0,4.2130137]
[1728861585142,8.1091,2466.4,2466.1,1.49254204]
[1728861585462,4.05452,2466.4,2466.2,1.49254204]
[1728861587119,4.05452,2466.4,2466.1,1.49254204]
[1728861588168,8.10911,2466.4,2466.2,0.05799952]
[1728861588373,4.05452,2466.4,2466.2,0.05799952]
[1728861589639,8.10916,2466.4,2466.2,0.05799952]
[1728861589843,4.05452,2466.4,2466.2,0.05799952]
[1728861590566,8.10917,2466.4,2466.2,0.05799952]
[1728861590779,8.1091,2466.4,2466.2,0.05799952]
[1728861590930,4.05452,2466.4,2466.2,0.05799952]
[1728861591130,4.05465,2466.3,2466.2,0.05799952]
[1728861591365,5.38145,2466.3,2466.2,0.05799952]
[1728861591570,4.05497,2466.2,2465.9,1.49254204]
[1728861591737,4.05497,2466.2,2466.0,0.12701173]
[1728861592061,4.05497,2466.2,2465.9,1.49254204]
[1728861592262,4.05497,2466.2,2466.0,0.12701069]
[1728861592465,4.05497,2466.2,2465.9,1.49254204]
[1728861592672,4.05497,2466.2,2466.0,1.61955489]
[1728861592838,4.05497,2466.2,2466.0,1.49254204]
[1728861593034,8.65943,2466.3,2466.1,0.0768]
[1728861593311,8.65943,2466.3,2466.1,1.56934204]
[1728861593615,4.60465,2466.3,2466.1,1.56934204]
[1728861593731,4.05482,2466.2,2466.1,0.0768]
[1728861594130,4.05482,2466.2,2466.1,0.20380981]
[1728861594565,4.05482,2466.2,2466.1,1.69635185]
[1728861594955,4.05465,2466.3,2466.1,1.69635185]
[1728861595269,4.05465,2466.3,2466.1,1.56934204]
[1728861595434,4.05465,2466.3,2466.1,0.0768]
[1728861596059,4.05465,2466.3,2466.1,1.56934204]
[1728861596260,4.05465,2466.3,2466.0,1.49254204]
[1728861596465,4.05465,2466.3,2466.1,0.12700758]
[1728861596633,4.05465,2466.3,2466.1,1.49254204]
[1728861599759,4.05465,2466.3,2466.0,2.54888736]
[1728861599971,4.05465,2466.3,2466.1,0.12700837]
[1728861600156,4.05465,2466.3,2466.0,1.49254204]
[1728861600357,4.05465,2466.3,2466.1,0.12700603]
[1728861600560,4.05465,2466.3,2466.0,1.49254204]
[1728861600760,4.05465,2466.3,2466.1,0.12700803]
[1728861600961,4.05465,2466.3,2466.0,1.49254204]
[1728861601162,4.05465,2466.3,2466.1,0.12700704]
[1728861601358,4.05465,2466.3,2466.0,1.49254204]
[1728861601568,4.05465,2466.3,2466.1,0.83144413]
[1728861601894,4.05465,2466.3,2466.2,0.12700796]
[1728861602193,4.05465,2466.3,2466.2,0.12700703]
[1728861603054,4.05465,2466.3,2466.2,0.18504259]
[1728861603598,4.05438,2466.5,2466.2,1.6273776]
[1728861603885,4.05438,2466.5,2466.3,0.12700071]
[1728861604089,4.05438,2466.5,2466.2,1.6273776]
[1728861604295,4.05438,2466.5,2466.3,0.12700054]
[1728861604463,4.05438,2466.5,2466.3,0.05803556]
[1728861604898,4.05438,2466.5,2466.2,1.56934204]
[1728861605068,4.05438,2466.5,2466.4,0.05803556]
[1728861605271,4.05411,2466.7,2466.4,1.49254204]
[1728861605456,4.05389,2466.8,2466.6,1.49254204]
[1728861605650,4.05389,2466.8,2466.5,1.56934204]
[1728861605966,4.05389,2466.8,2466.7,0.05786977]
[1728861606163,4.05389,2466.8,2466.5,0.0768]
[1728861606374,4.05389,2466.8,2466.7,0.05786977]
[1728861606576,4.05389,2466.8,2466.5,1.56934204]
[1728861606778,4.05389,2466.8,2466.7,0.05786977]
[1728861606985,4.05389,2466.8,2466.5,1.56934204]
[1728861607191,4.05389,2466.8,2466.7,0.05786977]
[1728861607355,4.05389,2466.8,2466.5,1.56934204]
[1728861607559,4.05389,2466.8,2466.7,0.05786977]
[1728861607790,4.05389,2466.8,2466.5,1.56934204]
[1728861607955,4.05389,2466.8,2466.7,0.05786977]
[1728861608154,4.05389,2466.8,2466.5,1.56934204]
[1728861608377,4.05389,2466.8,2466.7,0.05786977]
[1728861608590,4.05389,2466.8,2466.5,1.56934204]
[1728861608797,4.05389,2466.8,2466.7,0.05786977]
[1728861608952,4.05389,2466.8,2466.5,1.56934204]
[1728861609451,4.05389,2466.8,2466.6,0.05786977]
[1728861610304,4.05399,2466.7,2466.6,0.05786977]
[1728861610817,4.05417,2466.6,2466.4,1.49254204]
[1728861611457,4.05389,2466.8,2466.4,1.49254204]
[1728861611662,4.05401,2466.7,2466.4,1.49254204]
[1728861612669,4.05401,2466.7,2466.5,1.49254204]
[1728861614090,4.05416,2466.6,2466.4,1.49254204]
[1728861614306,4.05449,2466.4,2466.2,1.49254204]
[1728861614626,8.92926,2466.4,2466.2,1.49254204]
[1728861614899,8.92926,2466.4,2466.3,0.12700081]
[1728861615061,8.92926,2466.4,2466.2,1.49254204]
[1728861615372,4.87469,2466.4,2466.2,1.49254204]
[1728861616131,4.87469,2466.4,2466.3,0.12699968]
[1728861616417,4.05449,2466.4,2466.2,1.49254204]
[1728861616583,4.05449,2466.4,2466.3,0.12700078]
[1728861617125,4.05449,2466.4,2466.3,0.2540016]
[1728861618116,4.05449,2466.4,2466.3,0.3110317]
[1728861618508,4.05449,2466.4,2466.3,1.80357374]
[1728861619220,4.05449,2466.4,2466.3,0.3110317]
[1728861619580,4.05449,2466.4,2466.3,1.80357374]
[1728861619779,4.05449,2466.4,2466.3,1.80357379]
[1728861620281,4.05449,2466.4,2466.3,0.31103175]
[1728861620580,4.05449,2466.4,2466.3,1.80357379]
[1728861621476,4.05449,2466.4,2466.3,0.31103175]
[1728861625619,4.05449,2466.4,2466.3,1.01583349]
[1728861625982,0.8202,2466.6,2466.3,2.50837553]
[1728861625983,4.60433,2466.5,2466.3,2.50837553]
[1728861626320,0.8202,2466.6,2466.4,1.61954291]
[1728861626524,4.05414,2466.7,2466.5,0.12700087]
[1728861626814,0.7531,2466.8,2466.5,1.49254204]
[1728861626979,0.7531,2466.8,2466.6,0.0570301]
[1728861627704,4.807,2466.8,2466.6,0.0570301]
[1728861628728,4.807,2466.8,2466.7,0.0570157]
[1728861629238,4.807,2466.8,2466.5,1.49254204]
[1728861629735,4.807,2466.8,2466.6,0.18400099]
[1728861630029,4.807,2466.8,2466.6,0.0570157]
[1728861630739,11.10759,2466.9,2466.6,0.0570157]
[1728861631076,4.05384,2466.8,2466.6,0.0570157]
[1728861631996,4.05384,2466.8,2466.6,1.54955774]
[1728861632337,4.05384,2466.8,2466.6,1.67105376]
[1728861632533,4.05384,2466.8,2466.6,0.10171172]
[1728861633595,4.05399,2466.7,2466.6,0.10171172]
[1728861634708,4.05385,2466.8,2466.4,1.56934204]
[1728861634918,4.05417,2466.6,2466.5,0.12698859]
[1728861636304,4.8568,2466.7,2466.5,0.12698859]
[1728861636623,4.8568,2466.7,2466.4,1.56934204]
[1728861636818,4.8568,2466.7,2466.5,0.12698734]
[1728861637031,4.8568,2466.7,2466.4,1.56934204]
[1728861637213,4.8568,2466.7,2466.5,0.12698738]
[1728861637416,4.8568,2466.7,2466.4,1.56934204]
[1728861637627,4.8568,2466.7,2466.5,0.12698766]
[1728861637955,4.8568,2466.7,2466.4,1.56934204]
[1728861638156,4.8568,2466.7,2466.5,0.12698773]
[1728861638446,4.8568,2466.7,2466.4,1.56934204]
[1728861638647,4.8568,2466.7,2466.5,0.12698526]
[1728861638853,4.8568,2466.7,2466.4,1.56934204]
[1728861639226,4.8568,2466.7,2466.5,0.12698593]
[1728861639410,4.8568,2466.7,2466.4,1.56934204]
[1728861639616,4.8568,2466.7,2466.5,0.12698543]
[1728861639830,4.8568,2466.7,2466.4,1.56934204]
[1728861640058,4.8568,2466.7,2466.5,0.12698538]
[1728861640256,4.8568,2466.7,2466.4,1.56934204]
[1728861640551,4.054,2466.7,2466.5,0.12698698]
[1728861640751,4.054,2466.7,2466.4,2.21685428]
[1728861640909,4.054,2466.7,2466.5,0.12698584]
[1728861641109,4.054,2466.7,2466.4,2.21685428]
[1728861641325,4.054,2466.7,2466.5,0.12698489]
[1728861641525,4.054,2466.7,2466.6,0.12698489]
[1728861642059,4.054,2466.7,2466.4,1.56934204]
[1728861642264,4.054,2466.7,2466.6,0.12698406]
[1728861643270,4.0539,2466.8,2466.6,0.12698406]
[1728861643469,4.0539,2466.8,2466.4,1.56934204]
[1728861643628,4.0539,2466.8,2466.5,0.77447086]
[1728861643937,4.0539,2466.8,2466.6,0.12698362]
[1728861644143,4.0539,2466.8,2466.5,2.14002928]
[1728861644359,4.0539,2466.8,2466.6,0.12698433]
[1728861644669,4.0539,2466.8,2466.5,1.49254204]
[1728861644853,4.0539,2466.8,2466.6,0.12698457]
[1728861645058,4.0539,2466.8,2466.5,1.49254204]
[1728861645368,4.0539,2466.8,2466.6,0.12698457]
[1728861645562,4.0539,2466.8,2466.6,1.49254204]
[1728861645749,5.32565414,2467.0,2466.7,1.49254204]
[1728861645750,8.1072,2467.0,2466.7,1.49254204]
[1728861646281,8.1072,2467.0,2466.6,1.49254204]
[1728861646570,4.05369,2466.9,2466.6,1.49254204]
[1728861647663,4.05425,2466.6,2466.3,0.85098031]
[1728861647966,4.05425,2466.6,2466.4,2.09184301]
[1728861648167,4.05425,2466.6,2466.5,0.12698847]
[1728861648865,4.05425,2466.6,2466.5,0.22432743]
[1728861650070,4.05425,2466.6,2466.5,0.09733896]
[1728861650234,4.05425,2466.6,2466.5,0.22432753]
[1728861653485,4.05425,2466.6,2466.5,0.09733896]
[1728861653658,4.84088,2466.8,2466.5,1.18590881]
[1728861653966,4.84088,2466.8,2466.6,1.61952948]
[1728861654171,4.84088,2466.8,2466.6,1.5899026]
[1728861657589,0.55,2466.9,2466.6,1.5899026]
[1728861657884,4.05351,2467.0,2466.8,1.49254204]
[1728861658087,4.05351,2467.0,2466.9,0.12697138]
[1728861658286,4.05351,2467.0,2466.9,0.09729578]
[1728861658676,4.05351,2467.0,2466.9,0.22426591]
[1728861658861,4.05351,2467.0,2466.9,0.09729578]
[1728861660384,4.05351,2467.0,2466.7,2.1594358]
[1728861660586,4.05351,2467.0,2466.9,0.09729578]
[1728861660771,4.05351,2467.0,2466.8,0.09708704]
[1728861660992,4.05351,2467.0,2466.7,2.1594358]
[1728861661179,4.05351,2467.0,2466.9,0.09708704]
[1728861661488,4.83136,2466.8,2466.5,2.34352235]
[1728861661648,4.05401,2466.7,2466.6,0.12697628]
[1728861662787,4.83125,2466.8,2466.6,0.12697628]
[1728861663087,5.38125,2466.8,2466.7,0.12697628]
[1728861663291,5.38125,2466.8,2466.7,0.22399855]
[1728861663889,5.38125,2466.8,2466.7,0.09702227]
[1728861664293,4.05432,2466.5,2466.4,0.97382009]
[1728861664462,4.05432,2466.5,2466.4,1.30399454]
[1728861666614,4.05417,2466.6,2466.4,3.10095024]
[1728861666822,4.05417,2466.6,2466.5,0.12699017]
[1728861666980,4.60417,2466.6,2466.5,0.12699017]
[1728861667186,0.7774,2466.8,2466.4,2.46636213]
[1728861667501,0.7774,2466.8,2466.5,1.9512664]
[1728861667812,4.83125,2466.8,2466.6,0.12699012]
[1728861668017,4.83125,2466.8,2466.4,1.49254204]
[1728861668215,4.83125,2466.8,2466.5,0.33016787]
[1728861668530,4.604,2466.7,2466.6,0.12698764]
[1728861668822,4.05431,2466.6,2466.4,1.05731809]
[1728861669019,4.05431,2466.6,2466.5,0.12699212]
[1728861670885,4.05431,2466.6,2466.3,2.34506751]
[1728861671139,4.05439,2466.5,2466.4,1.88946075]